fUST/lending_fUST_20240813
["ID","MTS","AMOUNT","RATE_DAILY","PERIOD"]
[334782525,1723558238854,-153.0,0.00013634,2]
[334782526,1723558238864,-153.0,0.00013634,2]
[334782527,1723558238873,-153.0,0.00013634,2]
[334782528,1723558238882,-153.0,0.00013634,2]
[334782529,1723558238893,-153.0,0.00013634,2]
[334782530,1723558238904,-153.0,0.00013634,2]
[334782531,1723558238914,-153.0,0.00013634,2]
[334782532,1723558238925,-153.0,0.00013634,2]
[334782533,1723558238936,-30156.94204063,0.00013639,2]
[334782534,1723558238946,-457165.558276,0.00013639,2]
[334782535,1723558238957,-83272.14568761,0.00013669,2]
[334782536,1723558238968,-200.0,0.00013673,2]
[334782537,1723558238981,-200.0,0.00013673,2]
[334782538,1723558238992,-161.57699842,0.00013673,2]
[334782539,1723558239001,-200.0,0.00013673,2]
[334782540,1723558239011,-150.0,0.0001369,2]
[334782541,1723558239021,-508.0,0.0001369,2]
[334782542,1723558239032,-1413.0,0.0001369,2]
[334782543,1723558239042,-500.0,0.00013698,2]
[334782544,1723558239052,-500.0,0.00013698,2]
[334782545,1723558239063,-500.0,0.00013698,2]
[334782546,1723558239073,-500.0,0.00013698,2]
[334782547,1723558239084,-500.0,0.00013698,2]
[334782548,1723558239094,-500.0,0.00013698,2]
[334782549,1723558239106,-500.0,0.00013698,2]
[334782550,1723558239117,-500.0,0.00013698,2]
[334782551,1723558239126,-500.0,0.00013698,2]
[334782552,1723558239136,-500.0,0.00013698,2]
[334782553,1723558239146,-500.0,0.00013698,2]
[334782554,1723558239155,-756.0,0.00013698,2]
[334782555,1723558239166,-500.0,0.00013698,2]
[334782556,1723558239176,-500.0,0.00013698,2]
[334782557,1723558239186,-500.0,0.00013698,2]
[334782558,1723558239196,-500.0,0.00013698,2]
[334782559,1723558239207,-500.0,0.00013698,2]
[334782560,1723558239217,-500.0,0.00013698,2]
[334782561,1723558239228,-500.0,0.00013698,2]
[334782562,1723558239239,-515.21,0.00013698,2]
[334782563,1723558239249,-500.0,0.00013698,2]
[334782564,1723558239260,-500.53,0.00013698,2]
[334782565,1723558239269,-736.21,0.00013698,2]
[334782566,1723558239278,-500.0,0.00013698,2]
[334782567,1723558239287,-500.0,0.00013698,2]
[334782568,1723558239297,-500.0,0.00013698,2]
[334782569,1723558239307,-1500.96,0.00013698,2]
[334782570,1723558239320,-500.0,0.00013698,2]
[334782571,1723558239330,-1044.58,0.00013698,2]
[334782572,1723558239339,-500.0,0.00013698,2]
[334782573,1723558239349,-500.0,0.00013698,2]
[334782574,1723558239359,-500.0,0.00013698,2]
[334782575,1723558239369,-500.0,0.00013698,2]
[334782576,1723558239378,-500.0,0.00013698,2]
[334782577,1723558239391,-500.0,0.00013698,2]
[334782578,1723558239401,-500.0,0.00013698,2]
[334782579,1723558239411,-500.0,0.00013698,2]
[334782580,1723558239421,-500.0,0.00013698,2]
[334782581,1723558239431,-500.0,0.00013698,2]
[334782582,1723558239440,-500.0,0.00013698,2]
[334782583,1723558239451,-500.0,0.00013698,2]
[334782584,1723558239460,-500.0,0.00013698,2]
[334782585,1723558239480,-500.0,0.00013698,2]
[334782586,1723558239497,-500.0,0.00013698,2]
[334782587,1723558239507,-324.31541479,0.00013698,2]
[334782588,1723558239519,-500.0,0.00013698,2]
[334782590,1723558239529,-500.0,0.00013698,2]
[334782592,1723558239540,-500.0,0.00013698,2]
[334782593,1723558239551,-500.0,0.00013698,2]
[334782594,1723558239563,-695.63,0.00013698,2]
[334782595,1723558239574,-500.0,0.00013698,2]
[334782596,1723558239586,-620.9,0.00013698,2]
[334782598,1723558239598,-500.0,0.00013698,2]
[334782600,1723558239609,-500.0,0.00013698,2]
[334782602,1723558239620,-500.0,0.00013698,2]
[334782604,1723558239632,-500.0,0.00013698,2]
[334782606,1723558239646,-500.0,0.00013698,2]
[334782609,1723558239658,-500.0,0.00013698,2]
[334782610,1723558239668,-500.0,0.00013698,2]
[334782611,1723558239679,-500.0,0.00013698,2]
[334782612,1723558239690,-500.0,0.00013698,2]
[334782613,1723558239700,-500.0,0.00013698,2]
[334782614,1723558239711,-600.39,0.00013698,2]
[334782615,1723558239721,-554.56,0.00013698,2]
[334782616,1723558239731,-876.28,0.00013698,2]
[334782617,1723558239741,-500.0,0.00013698,2]
[334782618,1723558239751,-500.0,0.00013698,2]
[334782619,1723558239762,-656.25,0.00013698,2]
[334782620,1723558239774,-655.98,0.00013698,2]
[334782621,1723558239783,-500.0,0.00013698,2]
[334782622,1723558239796,-500.0,0.00013698,2]
[334782623,1723558239809,-750.73,0.00013698,2]
[334782624,1723558239819,-720.93,0.00013698,2]
[334782625,1723558239829,-1558.23,0.00013698,2]
[334782626,1723558239839,-1214.43,0.00013698,2]
[334782628,1723558239848,-500.0,0.00013698,2]
[334782629,1723558239858,-680.48,0.00013698,2]
[334782630,1723558239869,-2394.91,0.00013698,2]
[334782631,1723558239878,-1292.8,0.00013698,2]
[334782632,1723558239890,-784.09,0.00013698,2]
[334782634,1723558239900,-500.0,0.00013698,2]
[334782636,1723558239910,-500.0,0.00013698,2]
[334782638,1723558239920,-500.0,0.00013698,2]
[334782640,1723558239930,-516.48352692,0.00013698,2]
[334782642,1723558239940,-691.57,0.00013698,2]
[334782643,1723558239950,-654.28,0.00013698,2]
[334782644,1723558239960,-500.0,0.00013698,2]
[334782645,1723558239971,-1029.66,0.00013698,2]
[334782646,1723558239981,-500.0,0.00013698,2]
[334782647,1723558239991,-5952.96,0.00013698,2]
[334782648,1723558240001,-500.0,0.00013698,2]
[334782649,1723558240011,-500.0,0.00013698,2]
[334782650,1723558240022,-500.0,0.00013698,2]
[334782651,1723558240032,-500.0,0.00013698,2]
[334782652,1723558240043,-500.0,0.00013698,2]
[334782653,1723558240053,-500.0,0.00013698,2]
[334782654,1723558240062,-500.0,0.00013698,2]
[334782655,1723558240073,-500.0,0.00013698,2]
[334782656,1723558240083,-500.0,0.00013698,2]
[334782658,1723558240092,-500.0,0.00013698,2]
[334782660,1723558240102,-1845.84,0.00013698,2]
[334782662,1723558240112,-703.16,0.00013698,2]
[334782664,1723558240122,-500.0,0.00013698,2]
[334782666,1723558240132,-500.0,0.00013698,2]
[334782668,1723558240143,-500.0,0.00013698,2]
[334782669,1723558240153,-734.5,0.00013698,2]
[334782670,1723558240163,-559.51236382,0.00013698,2]
[334782671,1723558240172,-776.81,0.00013698,2]
[334782673,1723558240182,-991.87,0.00013698,2]
[334782675,1723558240192,-1448.44,0.00013698,2]
[334782676,1723558240202,-500.0,0.00013698,2]
[334782677,1723558240213,-500.0,0.00013698,2]
[334782678,1723558240223,-941.23,0.00013698,2]
[334782679,1723558240233,-500.0,0.00013698,2]
[334782680,1723558240243,-664.81,0.00013698,2]
[334782681,1723558240252,-5818.74,0.00013698,2]
[334782682,1723558240262,-848.3,0.00013698,2]
[334782683,1723558240271,-500.0,0.00013698,2]
[334782684,1723558240281,-502.02,0.00013698,2]
[334782685,1723558240291,-500.0,0.00013698,2]
[334782686,1723558240301,-1181.74,0.00013698,2]
[334782687,1723558240312,-302.02855473,0.00013698,2]
[334782688,1723558240327,-1083.15,0.00013698,2]
[334782689,1723558240336,-1052.73,0.00013698,2]
[334782690,1723558240346,-1161.92,0.00013698,2]
[334782691,1723558240356,-515.05213383,0.00013698,2]
[334782692,1723558240367,-500.0,0.00013698,2]
[334782693,1723558240377,-1006.27,0.00013698,2]
[334782694,1723558240388,-500.0,0.00013698,2]
[334782695,1723558240399,-801.67,0.00013698,2]
[334782696,1723558240410,-503.24555776,0.00013698,2]
[334782697,1723558240419,-3067.71,0.00013698,2]
[334782698,1723558240428,-321.49756004,0.00013698,2]
[334782699,1723558240438,-500.0,0.00013698,2]
[334782700,1723558240447,-500.0,0.00013698,2]
[334782701,1723558240457,-613.89,0.00013698,2]
[334782702,1723558240466,-500.0,0.00013698,2]
[334782703,1723558240476,-500.0,0.00013698,2]
[334782704,1723558240485,-500.0,0.00013698,2]
[334782705,1723558240495,-500.0,0.00013698,2]
[334782706,1723558240504,-500.0,0.00013698,2]
[334782707,1723558240514,-951.5,0.00013698,2]
[334782708,1723558240524,-581.42,0.00013698,2]
[334782709,1723558240534,-4224.45,0.00013698,2]
[334782710,1723558240543,-816.05,0.00013698,2]
[334782711,1723558240553,-503.6887129,0.00013698,2]
[334782712,1723558240563,-500.0,0.00013698,2]
[334782713,1723558240572,-500.0,0.00013698,2]
[334782714,1723558240582,-787.59,0.00013698,2]
[334782715,1723558240591,-500.0,0.00013698,2]
[334782716,1723558240601,-1607.79,0.00013698,2]
[334782717,1723558240611,-500.0,0.00013698,2]
[334782718,1723558240620,-580.36,0.00013698,2]
[334782719,1723558240630,-812.89,0.00013698,2]
[334782720,1723558240641,-3517.8,0.00013698,2]
[334782721,1723558240651,-590.91,0.00013698,2]
[334782722,1723558240660,-472.66810665,0.00013698,2]
[334782723,1723558240670,-686.26,0.00013698,2]
[334782724,1723558240679,-633.67,0.00013698,2]
[334782725,1723558240688,-1002.56,0.00013698,2]
[334782726,1723558240698,-1060.32,0.00013698,2]
[334782727,1723558240708,-505.9565507,0.00013698,2]
[334782728,1723558240717,-500.0,0.00013698,2]
[334782729,1723558240727,-1223.41,0.00013698,2]
[334782730,1723558240737,-501.91736511,0.00013698,2]
[334782731,1723558240746,-500.0,0.00013698,2]
[334782732,1723558240756,-500.0,0.00013698,2]
[334782733,1723558240765,-3290.28,0.00013698,2]
[334782734,1723558240775,-503.34967199,0.00013698,2]
[334782735,1723558240784,-500.0,0.00013698,2]
[334782736,1723558240794,-446.51224702,0.00013698,2]
[334782737,1723558240804,-500.0,0.00013698,2]
[334782738,1723558240813,-500.0,0.00013698,2]
[334782739,1723558240823,-500.0,0.00013698,2]
[334782740,1723558240832,-500.0,0.00013698,2]
[334782741,1723558240841,-500.0,0.00013698,2]
[334782742,1723558240851,-595.26889214,0.00013698,2]
[334782743,1723558240861,-503.10998793,0.00013698,2]
[334782744,1723558240871,-500.0,0.00013698,2]
[334782745,1723558240881,-1294.07,0.00013698,2]
[334782746,1723558240890,-806.35,0.00013698,2]
[334782747,1723558240899,-806.35,0.00013698,2]
[334782748,1723558240909,-806.35,0.00013698,2]
[334782749,1723558240919,-806.35,0.00013698,2]
[334782750,1723558240930,-806.35,0.00013698,2]
[334782751,1723558240942,-500.0,0.00013698,2]
[334782752,1723558240953,-806.35,0.00013698,2]
[334782753,1723558240964,-806.35,0.00013698,2]
[334782754,1723558240975,-806.35,0.00013698,2]
[334782755,1723558240985,-806.35,0.00013698,2]
[334782756,1723558240995,-806.35,0.00013698,2]
[334782757,1723558241004,-500.0,0.00013698,2]
[334782758,1723558241015,-806.35,0.00013698,2]
[334782759,1723558241026,-806.35,0.00013698,2]
[334782760,1723558241037,-806.35,0.00013698,2]
[334782761,1723558241047,-806.35,0.00013698,2]
[334782762,1723558241058,-634.66,0.00013698,2]
[334782763,1723558241069,-806.35,0.00013698,2]
[334782764,1723558241079,-806.35,0.00013698,2]
[334782765,1723558241091,-806.35,0.00013698,2]
[334782766,1723558241101,-886.67,0.00013698,2]
[334782767,1723558241113,-806.35,0.00013698,2]
[334782768,1723558241123,-500.0,0.00013698,2]
[334782769,1723558241136,-806.35,0.00013698,2]
[334782770,1723558241150,-354.08086517,0.00013698,2]
[334782771,1723558241159,-1139.53,0.00013698,2]
[334782772,1723558241170,-500.0,0.00013698,2]
[334782773,1723558241181,-500.0,0.00013698,2]
[334782774,1723558241191,-738.4,0.00013698,2]
[334782775,1723558241204,-3000.0,0.00013699,2]
[334782776,1723558241214,-2652.91111,0.00013699,2]
[334782777,1723558241224,-24672.8748664,0.00013699,2]
[334782778,1723558241236,-500.0,0.00013699,2]
[334782779,1723558241246,-500.0,0.00013699,2]
[334782780,1723558241255,-500.0,0.00013699,2]
[334782781,1723558241265,-500.0,0.00013699,2]
[334782782,1723558241275,-500.0,0.00013699,2]
[334782783,1723558241285,-500.0,0.00013699,2]
[334782784,1723558241297,-500.0,0.00013699,2]
[334782785,1723558241307,-500.0,0.00013699,2]
[334782786,1723558241321,-500.0,0.00013699,2]
[334782787,1723558241333,-500.0,0.00013699,2]
[334782788,1723558241345,-500.0,0.00013699,2]
[334782789,1723558241355,-500.0,0.00013699,2]
[334782790,1723558241366,-500.0,0.00013699,2]
[334782791,1723558241379,-500.0,0.00013699,2]
[334782792,1723558241390,-500.0,0.00013699,2]
[334782793,1723558241401,-340.84659596,0.00013699,2]
[334782794,1723558241412,-500.0,0.00013699,2]
[334782795,1723558241422,-500.0,0.00013699,2]
[334782796,1723558241432,-500.0,0.00013699,2]
[334782797,1723558241442,-500.0,0.00013699,2]
[334782798,1723558241452,-500.0,0.00013699,2]
[334782799,1723558241463,-500.0,0.00013699,2]
[334782800,1723558241475,-500.0,0.00013699,2]
[334782801,1723558241486,-500.0,0.00013699,2]
[334782802,1723558241496,-500.0,0.00013699,2]
[334782803,1723558241507,-500.0,0.00013699,2]
[334782804,1723558241518,-500.0,0.00013699,2]
[334782805,1723558241530,-500.0,0.00013699,2]
[334782806,1723558241541,-500.0,0.00013699,2]
[334782807,1723558241550,-500.0,0.00013699,2]
[334782808,1723558241560,-500.0,0.00013699,2]
[334782809,1723558241570,-500.0,0.00013699,2]
[334782810,1723558241580,-1143.55443712,0.00013699,2]
[334782811,1723558241590,-1143.55443712,0.00013699,2]
[334782812,1723558241600,-1143.55443712,0.00013699,2]
[334782813,1723558241609,-1143.55443712,0.00013699,2]
[334782814,1723558241619,-1143.55443712,0.00013699,2]
[334782815,1723558241629,-1143.55443712,0.00013699,2]
[334782816,1723558241639,-1143.55443712,0.00013699,2]
[334782817,1723558241648,-1143.55443712,0.00013699,2]
[334782818,1723558241668,-1143.55443712,0.00013699,2]
[334782819,1723558241679,-1143.55443712,0.00013699,2]
[334782820,1723558241688,-1143.55443712,0.00013699,2]
[334782821,1723558241698,-1143.55443712,0.00013699,2]
[334782822,1723558241709,-150.112233,0.000137,2]
[334782823,1723558241718,-150.112233,0.000138,2]
[334782824,1723558241728,-304.0,0.00013863,2]
[334782825,1723558241738,-150.112233,0.000139,2]
[334782826,1723558241747,-806.35,0.00013971,2]
[334782827,1723558241942,-806.35,0.00013971,2]
[334782828,1723558241952,-806.35,0.00013971,2]
[334782829,1723558241963,-806.35,0.00013971,2]
[334782830,1723558241973,-806.46448115,0.00013971,2]
[334782831,1723558241983,-500.0,0.00013972,2]
[334782832,1723558241992,-500.0,0.00013972,2]
[334782833,1723558242001,-502.89881437,0.00013972,2]
[334782834,1723558242010,-500.0,0.00013972,2]
[334782835,1723558242021,-500.0,0.00013972,2]
[334782836,1723558242032,-500.0,0.00013972,2]
[334782837,1723558242041,-500.0,0.00013972,2]
[334782838,1723558242050,-500.0,0.00013972,2]
[334782839,1723558242062,-500.0,0.00013972,2]
[334782840,1723558242073,-500.0,0.00013972,2]
[334782841,1723558242086,-500.0,0.00013972,2]
[334782842,1723558242097,-756.0,0.00013972,2]
[334782843,1723558242106,-500.0,0.00013972,2]
[334782844,1723558242116,-500.0,0.00013972,2]
[334782845,1723558242125,-500.0,0.00013972,2]
[334782846,1723558242135,-500.0,0.00013972,2]
[334782847,1723558242147,-500.0,0.00013972,2]
[334782848,1723558242156,-500.0,0.00013972,2]
[334782849,1723558242165,-500.0,0.00013972,2]
[334782850,1723558242174,-515.21,0.00013972,2]
[334782851,1723558242187,-500.53,0.00013972,2]
[334782852,1723558242196,-736.21,0.00013972,2]
[334782853,1723558242206,-500.0,0.00013972,2]
[334782854,1723558242216,-500.0,0.00013972,2]
[334782855,1723558242225,-500.0,0.00013972,2]
[334782856,1723558242235,-1500.96,0.00013972,2]
[334782857,1723558242244,-500.0,0.00013972,2]
[334782858,1723558242254,-1044.58,0.00013972,2]
[334782859,1723558242264,-500.0,0.00013972,2]
[334782860,1723558242274,-500.0,0.00013972,2]
[334782861,1723558242284,-500.0,0.00013972,2]
[334782862,1723558242294,-500.0,0.00013972,2]
[334782863,1723558242303,-500.0,0.00013972,2]
[334782864,1723558242313,-500.0,0.00013972,2]
[334782865,1723558242326,-500.0,0.00013972,2]
[334782866,1723558242335,-500.0,0.00013972,2]
[334782867,1723558242345,-500.0,0.00013972,2]
[334782868,1723558242354,-500.0,0.00013972,2]
[334782869,1723558242364,-500.0,0.00013972,2]
[334782871,1723558242374,-367.12412063,0.00013972,2]
[334782872,1723558242383,-500.0,0.00013972,2]
[334782873,1723558242393,-500.0,0.00013972,2]
[334782874,1723558242403,-500.0,0.00013972,2]
[334782875,1723558242413,-500.0,0.00013972,2]
[334782876,1723558242423,-500.0,0.00013972,2]
[334782877,1723558242433,-500.0,0.00013972,2]
[334782878,1723558242443,-500.0,0.00013972,2]
[334782879,1723558242455,-695.63,0.00013972,2]
[334782880,1723558242465,-500.0,0.00013972,2]
[334782881,1723558242475,-620.9,0.00013972,2]
[334782882,1723558242484,-500.0,0.00013972,2]
[334782883,1723558242493,-500.0,0.00013972,2]
[334782884,1723558242503,-500.0,0.00013972,2]
[334782885,1723558242512,-500.0,0.00013972,2]
[334782886,1723558242523,-500.0,0.00013972,2]
[334782887,1723558242532,-500.0,0.00013972,2]
[334782888,1723558242542,-500.0,0.00013972,2]
[334782889,1723558242552,-600.39,0.00013972,2]
[334782890,1723558242562,-554.56,0.00013972,2]
[334782891,1723558242571,-876.28,0.00013972,2]
[334782892,1723558242581,-500.0,0.00013972,2]
[334782893,1723558242591,-500.0,0.00013972,2]
[334782894,1723558242600,-656.25,0.00013972,2]
[334782896,1723558242610,-655.98,0.00013972,2]
[334782898,1723558242620,-500.0,0.00013972,2]
[334782899,1723558242630,-500.0,0.00013972,2]
[334782900,1723558242640,-750.73,0.00013972,2]
[334782901,1723558242649,-720.93,0.00013972,2]
[334782902,1723558242659,-1558.23,0.00013972,2]
[334782903,1723558242668,-1214.43,0.00013972,2]
[334782904,1723558242677,-500.0,0.00013972,2]
[334782905,1723558242687,-680.48,0.00013972,2]
[334782906,1723558242697,-2394.91,0.00013972,2]
[334782907,1723558242707,-1292.8,0.00013972,2]
[334782908,1723558242716,-784.09,0.00013972,2]
[334782909,1723558242726,-500.0,0.00013972,2]
[334782910,1723558242736,-500.0,0.00013972,2]
[334782911,1723558242747,-691.57,0.00013972,2]
[334782912,1723558242758,-654.28,0.00013972,2]
[334782914,1723558242767,-500.0,0.00013972,2]
[334782915,1723558242777,-1029.66,0.00013972,2]
[334782916,1723558242787,-500.0,0.00013972,2]
[334782917,1723558242796,-5952.96,0.00013972,2]
[334782918,1723558242806,-500.0,0.00013972,2]
[334782919,1723558242816,-500.0,0.00013972,2]
[334782920,1723558242826,-500.0,0.00013972,2]
[334782921,1723558242836,-500.0,0.00013972,2]
[334782922,1723558242845,-500.0,0.00013972,2]
[334782923,1723558242855,-500.0,0.00013972,2]
[334782924,1723558242865,-500.0,0.00013972,2]
[334782925,1723558242874,-192.72976493,0.00013972,2]
[334782926,1723558242884,-500.0,0.00013972,2]
[334782927,1723558242894,-1845.84,0.00013972,2]
[334782928,1723558242904,-703.16,0.00013972,2]
[334782929,1723558242913,-500.0,0.00013972,2]
[334782930,1723558242923,-500.0,0.00013972,2]
[334782931,1723558242932,-500.0,0.00013972,2]
[334782932,1723558242942,-734.5,0.00013972,2]
[334782933,1723558242951,-776.81,0.00013972,2]
[334782934,1723558242961,-991.87,0.00013972,2]
[334782935,1723558242971,-1448.44,0.00013972,2]
[334782936,1723558242980,-941.23,0.00013972,2]
[334782937,1723558242990,-500.0,0.00013972,2]
[334782938,1723558243000,-664.81,0.00013972,2]
[334782939,1723558243010,-5818.74,0.00013972,2]
[334782940,1723558243020,-848.3,0.00013972,2]
[334782941,1723558243030,-500.0,0.00013972,2]
[334782942,1723558243040,-502.02,0.00013972,2]
[334782943,1723558243050,-1181.74,0.00013972,2]
[334782944,1723558243060,-1083.15,0.00013972,2]
[334782945,1723558243070,-1052.73,0.00013972,2]
[334782946,1723558243079,-1161.92,0.00013972,2]
[334782947,1723558243089,-500.0,0.00013972,2]
[334782948,1723558243099,-1006.27,0.00013972,2]
[334782949,1723558243110,-500.0,0.00013972,2]
[334782950,1723558243119,-801.67,0.00013972,2]
[334782951,1723558243128,-3067.71,0.00013972,2]
[334782952,1723558243138,-500.0,0.00013972,2]
[334782953,1723558243148,-500.0,0.00013972,2]
[334782954,1723558243157,-613.89,0.00013972,2]
[334782955,1723558243167,-500.0,0.00013972,2]
[334782956,1723558243177,-500.0,0.00013972,2]
[334782957,1723558243186,-951.5,0.00013972,2]
[334782959,1723558243195,-581.42,0.00013972,2]
[334782961,1723558243206,-4224.45,0.00013972,2]
[334782962,1723558243215,-816.05,0.00013972,2]
[334782964,1723558243226,-500.0,0.00013972,2]
[334782966,1723558243235,-500.0,0.00013972,2]
[334782967,1723558243246,-787.59,0.00013972,2]
[334782968,1723558243256,-500.0,0.00013972,2]
[334782969,1723558243266,-1607.79,0.00013972,2]
[334782970,1723558243276,-505.9154111,0.00013972,2]
[334782971,1723558243286,-580.36,0.00013972,2]
[334782972,1723558243295,-812.89,0.00013972,2]
[334782973,1723558243305,-3517.8,0.00013972,2]
[334782974,1723558243316,-590.91,0.00013972,2]
[334782975,1723558243327,-686.26,0.00013972,2]
[334782976,1723558243336,-633.67,0.00013972,2]
[334782977,1723558243345,-1002.56,0.00013972,2]
[334782978,1723558243355,-1060.32,0.00013972,2]
[334782980,1723558243366,-500.0,0.00013972,2]
[334782982,1723558243375,-1223.41,0.00013972,2]
[334782983,1723558243385,-500.0,0.00013972,2]
[334782985,1723558243397,-3290.28,0.00013972,2]
[334782987,1723558243406,-160.41819334,0.00013972,2]
[334782989,1723558243416,-500.0,0.00013972,2]
[334782990,1723558243426,-1294.07,0.00013972,2]
[334782991,1723558243437,-500.0,0.00013972,2]
[334782992,1723558243447,-500.0,0.00013972,2]
[334782993,1723558243457,-634.66,0.00013972,2]
[334782994,1723558243467,-886.67,0.00013972,2]
[334782995,1723558243477,-1139.53,0.00013972,2]
[334782996,1723558243487,-738.4,0.00013972,2]
[334782997,1723558243498,-200.0,0.00013973,2]
[334782998,1723558243508,-150.112233,0.00014,2]
[334782999,1723558243518,-153.0,0.00014003,2]
[334783000,1723558243528,-153.0,0.00014003,2]
[334783001,1723558243538,-153.0,0.00014003,2]
[334783002,1723558243548,-153.0,0.00014003,2]
[334783003,1723558243558,-153.0,0.00014003,2]
[334783004,1723558243568,-308.1506605,0.00014003,2]
[334783005,1723558243577,-150.112233,0.000141,2]
[334783006,1723558243587,-602.0,0.000142,2]
[334783007,1723558243597,-150.112233,0.000142,2]
[334783008,1723558243607,-500.0,0.00014246,2]
[334783009,1723558243616,-500.0,0.00014246,2]
[334783010,1723558243627,-500.0,0.00014246,2]
[334783011,1723558243637,-500.0,0.00014246,2]
[334783012,1723558243657,-500.0,0.00014246,2]
[334783013,1723558243667,-500.0,0.00014246,2]
[334783014,1723558243677,-500.0,0.00014246,2]
[334783015,1723558243687,-500.0,0.00014246,2]
[334783016,1723558243698,-500.0,0.00014246,2]
[334783017,1723558243708,-500.0,0.00014246,2]
[334783019,1723558243718,-500.0,0.00014246,2]
[334783021,1723558243727,-756.0,0.00014246,2]
[334783022,1723558243737,-500.0,0.00014246,2]
[334783023,1723558243746,-500.0,0.00014246,2]
[334783024,1723558243756,-500.0,0.00014246,2]
[334783025,1723558243766,-156.45,0.00014246,2]
[334783026,1723558243775,-500.0,0.00014246,2]
[334783027,1723558243785,-507.38404864,0.00014246,2]
[334783028,1723558243794,-515.21,0.00014246,2]
[334783029,1723558243803,-500.53,0.00014246,2]
[334783030,1723558243813,-736.21,0.00014246,2]
[334783031,1723558243823,-500.0,0.00014246,2]
[334783032,1723558243833,-500.0,0.00014246,2]
[334783033,1723558243842,-500.0,0.00014246,2]
[334783034,1723558243852,-1500.96,0.00014246,2]
[334783035,1723558243861,-500.0,0.00014246,2]
[334783036,1723558243871,-1044.58,0.00014246,2]
[334783037,1723558243880,-500.0,0.00014246,2]
[334783038,1723558243890,-151.0,0.00014246,2]
[334783039,1723558243902,-151.0,0.00014246,2]
[334783040,1723558243911,-500.0,0.00014246,2]
[334783041,1723558243921,-500.0,0.00014246,2]
[334783042,1723558243930,-151.0,0.00014246,2]
[334783043,1723558243939,-500.0,0.00014246,2]
[334783044,1723558243949,-500.0,0.00014246,2]
[334783045,1723558243958,-500.0,0.00014246,2]
[334783046,1723558243967,-500.0,0.00014246,2]
[334783047,1723558243976,-500.0,0.00014246,2]
[334783048,1723558243985,-151.0,0.00014246,2]
[334783049,1723558243994,-500.0,0.00014246,2]
[334783050,1723558244003,-500.0,0.00014246,2]
[334783051,1723558244013,-500.0,0.00014246,2]
[334783052,1723558244022,-151.0,0.00014246,2]
[334783053,1723558244031,-500.0,0.00014246,2]
[334783054,1723558244040,-347.8709503,0.00014246,2]
[334783055,1723558244049,-500.0,0.00014246,2]
[334783056,1723558244058,-500.0,0.00014246,2]
[334783057,1723558244068,-500.0,0.00014246,2]
[334783058,1723558244077,-500.0,0.00014246,2]
[334783059,1723558244087,-500.0,0.00014246,2]
[334783060,1723558244096,-695.63,0.00014246,2]
[334783061,1723558244106,-500.0,0.00014246,2]
[334783062,1723558244115,-620.9,0.00014246,2]